bitfinex/quotes_ETHUSD_20260202
["timestamp","ask_amount","ask_price","bid_price","bid_amount"]
[1770054149331,13.06971125,2355.5,2354.0,0.90808198]
[1770054149526,13.06971125,2355.5,2354.0,0.001]
[1770054149851,0.0011,2355.2,2354.0,0.001]
[1770054150420,0.0011,2355.2,2354.7,0.01276622]
[1770054150619,9.52265784,2357.3,2354.7,0.01276622]
[1770054150620,1.06204089,2356.4,2355.0,0.01276622]
[1770054150939,0.0011,2356.4,2355.3,0.01276622]
[1770054151253,0.0011,2356.4,2355.4,0.90812273]
[1770054151464,0.0011,2356.4,2355.0,12.93733732]
[1770054151645,0.0011,2356.4,2355.1,0.91996635]
[1770054151970,0.0011,2356.4,2355.2,0.90720013]
[1770054152130,0.0011,2356.4,2355.3,0.90720013]
[1770054152458,0.0011,2356.4,2355.5,1.06134578]
[1770054152669,0.0011,2356.4,2355.6,0.90720013]
[1770054152817,12.00946547,2356.4,2354.6,2.28252491]
[1770054153129,9.52265784,2355.6,2354.0,0.001]
[1770054153328,9.52265784,2355.6,2354.0,1.06301201]
[1770054153329,12.00836547,2355.6,2354.0,1.06301201]
[1770054153519,1.20083655,2355.5,2354.0,1.06301201]
[1770054153722,12.00836547,2356.1,2354.0,1.06301201]
[1770054153723,4.664862,2356.0,2354.0,1.06301201]
[1770054154036,12.00836547,2355.7,2354.0,1.06301299]
[1770054154280,0.01276622,2355.6,2354.0,1.06301299]
[1770054154565,13.06971125,2355.5,2354.0,0.001]
[1770054155962,13.95971125,2355.5,2354.0,0.001]
[1770054156140,1.82178606,2355.4,2354.0,0.001]
[1770054156538,1.06143591,2355.3,2354.0,0.001]
[1770054158458,4.24574364,2355.4,2354.0,0.001]
[1770054160454,1.06139084,2355.4,2354.0,0.001]
[1770054160660,1.06116558,2355.9,2354.1,2.26975869]
[1770054160833,1.73141934,2355.8,2354.2,0.22707587]
[1770054161039,13.73978481,2355.8,2354.2,0.22707587]
[1770054161941,0.89,2355.7,2354.2,0.22707587]
[1770054162570,1.06130073,2355.6,2354.3,1.06188676]
[1770054163462,1.06240073,2355.6,2354.3,1.06188676]
[1770054163667,0.61976037,2355.5,2354.3,1.61565285]
[1770054164669,1.06139084,2355.4,2354.3,1.61565285]
[1770054165951,1.06139084,2355.4,2354.2,1.28997225]
[1770054166171,1.06139084,2355.4,2354.3,1.0618815]
[1770054166777,1.06139084,2355.4,2354.2,1.28998265]
[1770054166976,12.00836547,2355.3,2354.2,0.001]
[1770054167172,12.02113169,2355.3,2354.0,0.001]
[1770054168071,13.52132895,2355.3,2354.0,0.001]
[1770054168444,12.00836547,2355.1,2353.8,0.001]
[1770054168644,12.00836547,2354.9,2353.3,1.0623051]
[1770054168861,13.27163481,2354.7,2353.1,1.06242828]
[1770054169647,1.06170637,2354.7,2353.1,13.96016444]
[1770054169847,0.89,2354.6,2353.4,0.01276622]
[1770054170047,0.89,2354.6,2353.2,12.00129053]
[1770054170268,0.89,2354.6,2353.3,1.45981636]
[1770054171047,0.89,2354.6,2353.4,1.06229285]
[1770054171377,5.44713001,2355.0,2353.7,0.01276622]
[1770054171378,2.26243192,2355.0,2353.7,0.01276622]
[1770054171586,4.24567967,2355.4,2354.0,0.01276622]
[1770054171762,1.68112072,2355.5,2354.1,0.01276622]
[1770054171954,1.06136035,2355.5,2354.0,1.53444477]
[1770054173496,0.0011,2355.6,2354.3,0.01276622]
[1770054173699,1.06240231,2355.6,2354.1,14.58494605]
[1770054173874,0.53075456,2355.5,2354.2,2.11026126]
[1770054174069,1.06240231,2355.6,2354.3,0.01276622]
[1770054174803,1.06241007,2355.6,2354.3,0.01276622]
[1770054174975,1.06241275,2355.6,2354.3,0.01276622]
[1770054175300,0.0011,2355.6,2354.4,1.06184165]
[1770054176095,0.0011,2355.6,2354.2,2.11026126]
[1770054176264,12.89619628,2355.6,2354.2,1.06191048]
[1770054176465,12.89619628,2355.6,2354.3,1.06188512]
[1770054177499,12.89619628,2355.6,2354.2,4.24769113]
[1770054177500,1.06134578,2355.5,2353.9,13.06335773]
[1770054177658,0.0011,2355.3,2353.9,1.0620672]
[1770054177864,12.19218901,2355.3,2353.8,1.06208537]
[1770054178059,1.2192189,2355.2,2353.8,1.06208537]
[1770054178398,0.89,2355.1,2353.8,1.06208537]
[1770054179495,1.06157112,2355.0,2353.6,4.24844931]
[1770054180082,1.06157112,2355.0,2353.6,16.24973984]
[1770054180281,1.06157112,2355.0,2353.7,0.01276622]
[1770054180607,1.06148097,2355.2,2353.7,14.06519842]
[1770054180997,1.06148097,2355.2,2353.7,14.0524322]
[1770054181202,1.06148097,2355.2,2353.7,14.06519842]
[1770054181506,4.24693657,2355.3,2353.8,1.06211232]
[1770054181913,4.24693657,2355.3,2354.0,0.01276622]
[1770054182213,5.29142294,2355.3,2353.8,1.07487854]
[1770054182413,5.29142294,2355.3,2353.8,1.06211232]
[1770054182715,5.29142294,2355.3,2353.8,13.06340285]
[1770054183411,5.29142294,2355.3,2353.4,6.53097422]
[1770054183412,0.01276622,2353.2,2353.1,1.02765359]
[1770054183710,1.06196454,2354.2,2353.0,0.001]
[1770054183905,1.06181768,2354.5,2353.0,12.00229053]
[1770054184103,0.90795689,2354.4,2353.1,13.2027962]
[1770054184349,0.90795689,2354.3,2353.1,1.20150567]
[1770054184486,0.90795689,2354.2,2353.0,0.001]
[1770054184685,0.90795689,2354.1,2353.0,0.001]
[1770054184911,0.90795689,2354.0,2353.0,0.001]
[1770054185115,1.51296348,2354.3,2353.0,0.001]
[1770054185116,0.90795689,2353.9,2353.0,0.001]
[1770054185412,0.73322949,2354.1,2353.0,0.001]
[1770054185629,1.51296348,2354.3,2353.0,0.001]
[1770054185630,0.90691014,2354.0,2353.0,0.001]
[1770054185836,1.06188676,2354.3,2353.0,0.001]
[1770054186040,1.67814459,2354.2,2353.0,0.001]
[1770054186242,0.90690486,2354.1,2353.0,0.001]
[1770054186443,0.90690486,2354.0,2353.0,0.001]
[1770054186645,0.90690486,2353.9,2353.0,0.001]
[1770054186955,0.77123973,2354.2,2353.0,0.001]
[1770054187108,1.63979713,2354.1,2353.0,0.001]
[1770054187310,1.14767133,2354.0,2353.0,0.001]
[1770054187507,0.24110369,2354.0,2353.0,0.001]
[1770054187738,1.30313346,2354.0,2353.0,0.001]
[1770054188335,1.06186584,2354.4,2353.1,12.01405675]
[1770054188542,0.9064172,2354.3,2353.1,12.00129053]
[1770054188712,0.9064172,2354.2,2353.1,12.00129053]
[1770054188903,1.79509533,2354.4,2353.1,12.00129053]
[1770054189108,0.90653463,2354.3,2353.1,12.00129053]
[1770054189333,0.90653463,2354.2,2353.1,12.00129053]
[1770054189537,0.90653463,2354.1,2353.2,1.06238313]
[1770054189736,0.90653463,2354.1,2353.1,4.24963536]
[1770054189737,3.83446848,2354.2,2353.1,1.06241499]
[1770054189935,2.44798371,2354.1,2353.1,1.06241499]
[1770054190140,0.90653463,2354.0,2353.1,1.06241499]
[1770054190310,0.90653463,2353.9,2353.0,0.001]
[1770054190504,1.5542153,2354.1,2353.0,0.001]
[1770054190505,1.5542153,2354.1,2353.1,1.06241757]
[1770054190743,0.90626231,2354.0,2353.1,13.0637081]
[1770054191034,1.06193186,2354.2,2353.2,0.001]
[1770054191205,0.73322949,2354.0,2353.2,0.001]
[1770054191410,0.90611239,2353.9,2353.2,0.001]
[1770054191610,1.06202209,2354.0,2353.2,0.001]
[1770054191809,0.53111296,2353.9,2353.2,0.001]
[1770054193233,0.0011,2354.1,2353.3,12.00129053]
[1770054193739,0.0011,2354.1,2353.4,13.06358338]
[1770054195239,0.0011,2354.3,2353.8,0.01276622]
[1770054195440,2.19432129,2355.1,2353.8,12.01405675]
[1770054195671,1.55105405,2355.0,2353.9,2.26346408]
[1770054195828,0.90702151,2354.9,2353.9,1.0620584]
[1770054196027,0.90702151,2354.8,2353.9,1.0620584]
[1770054196228,0.90702151,2354.7,2353.9,1.0620584]
[1770054196428,1.77680504,2355.0,2353.9,1.0620584]
[1770054196625,1.34269184,2354.9,2353.9,1.0620584]
[1770054196856,0.90756011,2354.8,2353.9,1.0620584]
[1770054197530,0.90756011,2354.8,2353.8,12.00129053]
[1770054198970,2.19426104,2355.2,2354.0,12.00129053]
[1770054199133,0.9081016,2355.1,2354.0,12.00129053]
[1770054199467,0.9081016,2355.0,2354.1,13.20141958]
[1770054199636,1.1327725,2355.2,2354.2,1.06193186]
[1770054199831,1.06256898,2355.3,2354.2,1.06193186]
[1770054199832,0.90874339,2355.1,2354.2,1.06193186]
[1770054200035,0.90874339,2355.0,2354.2,1.06193186]
[1770054200258,2.19532033,2355.3,2354.2,1.06193186]
[1770054200460,1.70372807,2355.2,2354.2,1.06193186]
[1770054200673,0.9083404,2355.1,2354.2,1.06193186]
[1770054200890,0.9083404,2355.0,2354.2,1.06193186]
[1770054201054,0.79538767,2355.2,2354.2,1.06193186]
[1770054201382,0.90759938,2355.1,2354.2,1.06193186]
[1770054201559,0.90759938,2355.0,2354.2,3.3378125]
[1770054201739,0.79538767,2355.2,2354.2,3.3378125]
[1770054201942,0.90748781,2355.1,2354.2,15.7040103]
[1770054202165,1.06148097,2355.2,2354.2,15.7040103]
[1770054202373,0.90741121,2355.1,2354.2,15.7040103]
[1770054202672,1.06256277,2355.3,2354.2,15.7040103]
[1770054202968,0.9074289,2355.2,2354.2,15.7040103]
[1770054203182,0.9074289,2355.1,2354.3,0.72563378]
[1770054203384,1.06256277,2355.3,2354.3,0.72563378]
[1770054203558,0.90754965,2355.2,2354.3,0.72563378]
[1770054203870,0.90754965,2355.1,2354.4,1.06184165]
[1770054204076,1.06256277,2355.3,2354.4,1.06184165]
[1770054204274,1.55176628,2355.2,2354.4,1.06184165]
[1770054204463,0.90766412,2355.1,2354.4,1.06184165]
[1770054204667,0.64410216,2355.2,2354.4,1.06184165]
[1770054204885,0.9077155,2355.1,2354.4,1.06184165]
[1770054205091,0.64410216,2355.2,2354.4,1.06184165]
[1770054205279,0.90779761,2355.1,2354.4,1.06184165]
[1770054205464,0.0011,2354.9,2354.4,1.06184165]
[1770054206093,0.0011,2354.9,2354.3,4.24836663]
[1770054206386,0.0011,2354.9,2354.3,0.001]
[1770054210288,0.90706047,2354.8,2354.3,0.001]
[1770054210496,0.0011,2354.9,2354.3,0.001]
[1770054210705,1.96868072,2354.8,2354.3,0.001]
[1770054210924,0.90701944,2354.7,2354.0,0.001]
[1770054211090,1.06166128,2354.8,2354.0,0.001]
[1770054211292,0.90711065,2354.7,2354.0,0.001]
[1770054211605,1.06166128,2354.8,2354.0,0.001]
[1770054211806,1.46266068,2354.7,2354.0,0.001]
[1770054211987,0.55550947,2354.7,2354.0,0.001]
[1770054213121,1.30842243,2354.9,2354.0,0.001]
[1770054213418,0.90716666,2354.8,2354.0,12.3671978]
[1770054213582,0.90716666,2354.7,2354.0,12.3671978]
[1770054213782,0.24678822,2354.9,2354.0,12.3671978]
[1770054213984,0.90721013,2354.8,2354.0,12.3671978]
[1770054214318,0.90721013,2354.7,2354.0,12.3671978]
[1770054214610,0.33483894,2354.8,2354.0,12.3671978]
[1770054214818,0.90698927,2354.7,2354.1,1.06197697]
[1770054215015,0.24678822,2354.9,2354.1,1.06197697]
[1770054215181,0.9071831,2354.8,2354.1,1.06197697]
[1770054215529,0.0011,2354.9,2354.1,13.42817477]
[1770054215682,0.0011,2354.9,2354.2,14.13390607]
[1770054216000,1.1338725,2356.4,2355.1,12.37896402]
[1770054216187,0.90700273,2356.3,2355.1,13.26896402]
[1770054216581,0.0011,2356.4,2355.7,12.3661978]
[1770054216818,0.0011,2356.4,2355.9,1.06116558]
[1770054217117,1.06058383,2357.2,2355.9,13.42736338]
[1770054217420,2.19335633,2357.2,2355.9,13.42736338]
[1770054217715,0.90593553,2357.1,2355.9,1.06116558]
[1770054217876,0.90593553,2357.0,2355.9,1.06116558]
[1770054218077,1.06058383,2357.2,2355.9,14.62340218]
[1770054218299,0.90505842,2357.1,2355.9,14.62340218]
[1770054218491,1.06058383,2357.2,2355.9,14.62340218]
[1770054218786,1.06067034,2357.0,2355.9,14.62340218]
[1770054219388,4.24251422,2357.1,2355.9,14.62340218]
[1770054219389,1.06065604,2357.1,2355.9,14.62340218]
[1770054219629,0.53030493,2357.0,2356.0,1.76770827]
[1770054219832,0.53030493,2357.0,2355.1,12.3661978]
[1770054219833,0.91777617,2356.9,2355.1,12.3661978]
[1770054219983,0.01276622,2356.3,2355.0,4.24622165]
[1770054220177,1.79372899,2356.2,2355.2,1.0614547]
[1770054220377,0.89,2356.2,2355.5,1.06131561]
[1770054220600,0.89,2356.2,2355.5,1.06134354]
[1770054220812,1.9510335,2356.2,2355.1,16.61228199]
[1770054221016,1.9510335,2356.2,2355.1,18.80429575]
[1770054221197,1.0610335,2356.2,2355.1,14.55821156]
[1770054222120,1.0610335,2356.2,2355.1,12.3661978]
[1770054222316,0.90386035,2356.1,2355.1,12.3661978]
[1770054222514,1.0610335,2356.2,2355.1,12.3661978]
[1770054222816,1.1327725,2356.4,2355.2,13.42767877]
[1770054222817,1.06094041,2356.4,2355.2,13.42767877]
[1770054223001,0.90393453,2356.3,2355.2,13.42767877]
[1770054223183,1.06090992,2356.5,2355.3,1.76736027]
[1770054223382,0.90426883,2356.4,2355.3,1.76736027]
[1770054223586,1.06087295,2356.6,2355.3,14.13355807]
[1770054223782,1.06083924,2356.7,2355.3,14.13355807]
[1770054223986,0.89,2356.8,2355.3,14.13355807]
[1770054224183,0.0011,2357.1,2356.2,12.37896402]
[1770054224490,0.0011,2357.1,2356.4,12.3661978]
[1770054224805,0.0011,2357.1,2356.3,0.89]
[1770054225014,0.0011,2357.1,2356.3,1.06098138]
[1770054225319,0.0011,2357.1,2356.2,1.06101987]
[1770054225942,0.0011,2357.1,2356.3,1.06097728]
[1770054226234,0.01276622,2356.9,2355.6,4.24514631]
[1770054226530,0.90337375,2356.8,2355.8,1.06118787]
[1770054226731,0.3359703,2357.0,2355.4,1.6085039]
[1770054226932,2.1912994,2356.9,2355.4,1.06136106]
[1770054227140,0.90407021,2356.8,2355.4,1.06136106]
[1770054227431,0.90407021,2356.8,2355.4,13.42755886]
[1770054228836,0.0011,2357.1,2355.4,13.42755886]
[1770054229128,0.0011,2357.1,2355.6,12.16283886]
[1770054230843,0.0011,2357.1,2355.7,1.06125567]
[1770054231009,0.0011,2357.1,2355.7,13.59245802]
[1770054231840,0.0011,2357.1,2356.3,12.53120235]
[1770054232139,0.0011,2356.9,2356.3,0.89]
[1770054233323,0.0011,2356.9,2356.4,1.06094041]
[1770054233535,0.0011,2356.9,2356.4,1.68041062]
[1770054234740,0.0011,2356.9,2356.3,13.59215316]
[1770054235120,0.0011,2357.1,2356.3,13.59215316]
[1770054235637,0.0011,2357.1,2356.3,1.06095081]
[1770054236445,10.15983939,2356.6,2354.8,0.01276622]
[1770054236651,1.5257297,2355.2,2353.5,12.78863425]
[1770054236970,3.91726808,2355.1,2353.7,12.53120235]
[1770054237113,1.13058406,2354.9,2353.7,12.53120235]
[1770054237318,3.64366127,2354.8,2353.9,1.0620672]
[1770054237523,0.90215333,2354.7,2353.9,13.60603577]
[1770054237824,2.30163666,2354.9,2353.9,13.60603577]
[1770054238161,0.90148642,2354.8,2353.9,13.59326955]
[1770054238366,0.90148642,2354.7,2353.9,13.59326955]
[1770054238654,2.19218843,2355.0,2354.0,1.6480324]
[1770054238858,0.90140344,2354.9,2354.0,1.6480324]
[1770054239163,0.90140344,2354.8,2354.0,1.6480324]
[1770054239329,0.90140344,2354.7,2354.0,1.6480324]
[1770054239530,2.19218843,2355.0,2354.0,2.71002739]
[1770054239858,0.90129592,2354.9,2354.0,2.71002739]
[1770054240062,0.90129592,2354.8,2354.0,2.71002739]
[1770054240227,0.90129592,2354.7,2354.0,2.71002739]
[1770054240560,2.98731416,2355.0,2354.0,2.71002739]
[1770054240783,0.90137039,2354.9,2354.0,2.71002739]
[1770054240985,0.90137039,2354.8,2354.1,1.25312023]
[1770054241281,0.90137039,2354.7,2354.1,1.25312023]
[1770054241480,2.19216392,2355.0,2354.1,1.25312023]
[1770054241649,0.90193776,2354.9,2354.1,2.31505644]
[1770054241857,0.90193776,2354.8,2354.1,2.31505644]
[1770054242057,0.90193776,2354.7,2354.1,2.31505644]
[1770054242273,2.19216392,2355.0,2354.1,2.31505644]
[1770054242570,0.90193672,2354.9,2354.1,2.31505644]
[1770054242748,0.90193672,2354.8,2354.2,1.6480324]
[1770054242949,0.90193672,2354.7,2353.7,1.95211861]
[1770054243172,0.90193672,2354.7,2353.8,1.06209825]
[1770054243365,0.90193672,2354.7,2354.0,1.06201779]
[1770054243571,0.90193672,2354.7,2354.0,13.59322014]
[1770054243870,0.90193672,2354.7,2354.2,0.001]
[1770054244262,1.13058406,2354.5,2353.4,12.53120235]
[1770054244573,2.4149002,2354.6,2353.4,12.53120235]
[1770054244574,0.90193672,2354.4,2353.8,1.0621051]
[1770054244888,0.90193672,2354.3,2353.5,12.53120235]
[1770054245085,0.90193672,2354.2,2353.6,1.06220078]
[1770054245244,1.13058406,2354.5,2353.6,1.87323911]
[1770054245444,0.90134226,2354.4,2353.6,1.0622019]
[1770054245690,0.90134226,2354.3,2353.6,1.0622019]
[1770054245896,1.13058406,2354.5,2353.6,1.0622019]
[1770054246188,0.90130625,2354.4,2353.6,13.59340425]
[1770054246378,2.19236235,2354.6,2353.6,1.0622019]
[1770054246574,1.57556955,2354.5,2353.6,1.0622019]
[1770054246753,0.9007021,2354.4,2353.6,1.0622019]
[1770054246953,1.06175224,2354.6,2353.6,1.0622019]
[1770054247155,2.19213442,2355.1,2353.7,12.53120235]
[1770054247355,0.89993983,2355.0,2353.7,12.53120235]
[1770054247555,0.89993983,2354.9,2353.7,12.53120235]
[1770054247787,0.89993983,2354.8,2354.0,1.06202209]
[1770054247964,2.19218814,2355.0,2353.9,1.06204403]
[1770054248278,0.90007655,2354.9,2353.9,1.06204403]
[1770054248587,0.90007655,2354.8,2353.9,1.06204403]
[1770054248780,1.06160408,2355.0,2353.9,1.06204403]
[1770054248982,0.89995691,2354.9,2354.0,0.66696533]
[1770054249286,0.89995691,2354.8,2354.0,0.66696533]
[1770054249483,1.85671176,2355.0,2354.0,0.66696533]
[1770054249676,0.89994769,2354.9,2354.0,0.66696533]
[1770054249995,0.89994769,2354.8,2354.1,1.06197697]
[1770054250189,1.85671176,2355.0,2354.1,1.65967686]
[1770054250392,0.89994573,2354.9,2354.1,1.65967686]
[1770054250682,2.19206101,2355.3,2354.1,14.19087921]
[1770054250885,0.90004247,2355.2,2354.1,14.19087921]
[1770054251084,0.90004371,2355.1,2354.1,14.19087921]
[1770054251289,2.18653158,2355.3,2354.2,0.94411232]
[1770054251459,0.89994148,2355.2,2354.2,0.94411232]
[1770054251660,0.89994148,2355.1,2354.2,0.94411232]
[1770054251860,2.18653158,2355.3,2354.2,0.94411232]
[1770054252060,2.18653158,2355.3,2354.3,1.06188676]
[1770054252061,1.9614599,2355.2,2354.3,1.06188676]
[1770054252289,0.89994551,2355.1,2354.3,2.42122718]
[1770054252468,1.06151439,2355.2,2354.3,2.42122718]
[1770054252660,0.89985506,2355.1,2354.3,2.42122718]
[1770054252860,1.06151439,2355.2,2354.3,2.42122718]
[1770054253176,0.90005125,2355.1,2354.3,2.42122718]
[1770054253378,4.24578246,2355.3,2354.3,2.42122718]
[1770054253675,1.54337866,2355.2,2354.3,2.42122718]
[1770054253991,1.12505463,2355.4,2354.3,14.95242953]
[1770054254189,0.90019617,2355.3,2354.3,14.95242953]
[1770054254392,0.90019617,2355.2,2354.3,14.95242953]
[1770054254691,2.18640971,2355.5,2354.3,14.95242953]
[1770054254988,1.69480017,2355.4,2354.3,14.95242953]
[1770054255293,1.96179187,2355.3,2354.3,14.95242953]
[1770054255455,0.90032454,2355.2,2354.3,14.95242953]
[1770054255656,1.91953026,2355.4,2354.3,14.95242953]
[1770054255869,0.90067311,2355.3,2354.3,14.95242953]
[1770054256069,0.0011,2355.0,2354.4,0.59769989]
[1770054256270,1.12505463,2355.7,2354.4,13.12890224]
[1770054256498,0.90107828,2355.6,2354.6,12.53120235]
[1770054256710,2.18627911,2355.8,2354.6,12.53120235]
[1770054256711,0.0011,2355.2,2354.6,13.42120235]
[1770054257398,1.12505463,2356.0,2354.8,12.53120235]
[1770054257585,2.87901872,2356.0,2354.9,13.89049322]
[1770054257771,0.90100313,2355.9,2354.9,13.89049322]
[1770054258682,2.18613066,2356.1,2354.9,13.89049322]
[1770054258889,0.90120573,2356.0,2354.9,13.89049322]
[1770054259101,0.90120573,2355.9,2354.9,13.89049322]
[1770054259273,0.90120573,2355.8,2355.0,0.94416187]
[1770054259478,1.12505463,2356.1,2355.1,1.06152604]
[1770054259680,0.90159234,2356.0,2355.1,1.06152604]
[1770054260010,2.18721035,2356.2,2355.1,13.59272839]
[1770054260011,0.90159234,2355.9,2355.1,13.59272839]
[1770054260184,1.12615463,2356.2,2355.1,13.59272839]
[1770054260510,1.69747141,2356.2,2355.2,13.23965102]
[1770054260675,0.90197789,2356.1,2355.2,13.23965102]
[1770054261601,0.90197789,2356.1,2355.3,12.81338704]
[1770054262303,0.0011,2356.2,2355.3,12.81338704]
[1770054262304,0.90197789,2356.0,2355.3,12.81338704]
[1770054262502,0.0011,2356.2,2355.3,12.81338704]
[1770054262679,0.90279354,2356.1,2355.3,12.81338704]
[1770054262885,0.90279354,2356.0,2355.4,1.35929087]
[1770054263114,1.12615463,2356.2,2355.4,1.35929087]
[1770054263603,0.90339669,2356.1,2355.4,1.06138816]
[1770054263803,0.90339669,2356.1,2355.3,1.06140574]
[1770054264005,2.02845132,2356.1,2355.4,1.06137929]
[1770054264316,0.90339669,2356.0,2355.4,1.06137929]
[1770054265107,0.90339669,2355.9,2355.4,1.06137929]
[1770054265309,0.90339669,2355.8,2355.4,2.91605404]
[1770054265487,1.12505463,2356.1,2355.4,14.66800517]
[1770054265681,0.90529208,2356.0,2355.4,14.66800517]
[1770054265898,0.90529208,2355.9,2355.4,14.66800517]
[1770054266098,0.90529208,2355.8,2355.4,14.66800517]
[1770054266298,1.12505463,2356.1,2355.4,14.66800517]
[1770054266499,0.90617347,2356.0,2355.4,14.66800517]
[1770054266696,0.90617347,2355.9,2355.4,14.66800517]
[1770054266916,0.90617347,2355.8,2355.4,14.66800517]
[1770054267221,1.12505463,2356.1,2355.4,14.66800517]
[1770054267409,0.90597581,2356.0,2355.4,14.66800517]
[1770054267612,0.90597581,2355.9,2355.4,14.66800517]
[1770054267932,1.12478888,2356.2,2355.4,14.66800517]
[1770054268912,0.0011,2355.9,2355.4,14.66800517]
[1770054269318,0.0011,2355.9,2355.5,0.44877799]
[1770054269918,0.0011,2355.9,2355.6,1.06130073]
[1770054270096,0.0011,2355.9,2355.5,1.51008917]
[1770054270433,2.26535431,2356.9,2355.9,11.75195113]
[1770054270591,0.0011,2357.1,2356.0,13.17716958]
[1770054270801,0.0011,2357.1,2356.9,0.2212615]
[1770054271005,0.0011,2357.1,2357.0,0.89]
[1770054271931,0.44519802,2358.4,2357.0,0.89]
[1770054271932,0.1200318,2358.4,2357.1,12.81257647]
[1770054272135,1.18008363,2358.4,2357.1,12.81257647]
[1770054272332,0.54202294,2358.3,2357.2,1.79450778]
[1770054273108,1.18011154,2358.4,2357.2,1.79450778]
[1770054273450,1.18007624,2358.4,2357.2,1.79450778]
[1770054273733,13.36213562,2358.4,2357.1,1.06062534]
[1770054273954,12.18205938,2357.9,2356.9,0.2212615]
[1770054274115,12.18205938,2357.9,2356.4,0.89]
[1770054274116,12.16929316,2357.9,2356.4,0.89]
[1770054274318,12.16929316,2357.9,2356.4,1.95092083]
[1770054274555,1.21692932,2357.8,2356.6,1.06084897]
[1770054274733,12.16929316,2357.6,2356.4,0.89]
[1770054275626,12.16929316,2357.6,2356.2,1.06102731]
[1770054275825,1.06044538,2357.5,2356.0,1.06112054]
[1770054276422,13.22973854,2357.5,2356.0,1.06112054]
[1770054276623,1.74715201,2357.4,2356.0,1.06112054]
[1770054277149,1.74715201,2357.4,2356.0,12.81307167]
[1770054277351,4.34382974,2357.7,2356.2,11.76471735]
[1770054277352,1.06038391,2357.7,2356.2,11.76471735]
[1770054277638,2.2772721,2357.8,2356.3,0.90732109]
[1770054277812,2.2772721,2357.8,2356.3,1.06098544]
[1770054278012,2.2772721,2357.8,2356.3,12.81293657]
[1770054278341,1.21692932,2357.8,2356.3,12.81293657]
[1770054278640,1.44464925,2357.7,2356.4,1.70696446]
[1770054278938,1.44464925,2357.7,2356.5,12.64195113]
[1770054279110,0.1024,2358.1,2356.5,12.64195113]
[1770054279932,0.1024,2358.1,2356.6,1.06085037]
[1770054279933,1.06022052,2358.0,2356.6,1.06085037]
[1770054280516,12.27169316,2357.7,2356.0,11.75195113]
[1770054280705,12.27169316,2357.7,2356.0,0.89]
[1770054280911,12.27169316,2357.7,2356.0,1.95109764]
[1770054280912,12.16929316,2357.5,2356.0,1.95109764]
[1770054281241,1.30592932,2357.4,2356.0,3.32138278]
[1770054281445,1.30592932,2357.4,2356.1,1.06107296]
[1770054281740,1.30592932,2357.4,2356.2,1.06102709]
[1770054282109,1.06053535,2357.3,2356.5,0.001]
[1770054282313,1.06053535,2357.3,2356.0,3.32139275]
[1770054282314,1.06053535,2357.3,2356.0,2.26030488]
[1770054282529,0.66086061,2357.2,2356.3,0.001]
[1770054284348,1.06062534,2357.1,2356.3,0.001]
[1770054285765,0.66086061,2357.2,2356.3,0.001]
[1770054285974,1.06055561,2357.3,2356.3,0.001]
[1770054286175,1.0615004,2357.6,2356.3,0.001]
[1770054288269,1.0615004,2357.6,2356.3,11.75295113]
[1770054288474,1.0615004,2357.6,2356.4,0.91119153]
[1770054288679,1.0615004,2357.6,2356.3,11.75295113]
[1770054288880,0.61929822,2357.5,2356.3,12.92824624]
[1770054289383,0.61929822,2357.5,2356.4,0.91149631]
[1770054289597,0.61929822,2357.5,2356.3,12.92824624]
[1770054289753,0.61929822,2357.5,2356.4,13.31091651]
[1770054289956,0.0011,2357.6,2356.5,0.91146968]
[1770054290271,0.0011,2357.6,2356.6,0.91146968]
[1770054290470,0.0011,2357.6,2356.6,1.06082879]
[1770054290855,0.0011,2357.6,2356.3,2.23727305]
[1770054291059,0.0011,2357.6,2356.4,0.91162093]
[1770054291282,2.61374991,2357.6,2356.3,1.17629511]
[1770054291579,15.12793721,2357.6,2356.3,0.001]
[1770054292478,1.06044538,2357.5,2356.3,0.001]
[1770054292682,1.06044538,2357.5,2356.3,12.42708995]
[1770054292889,0.79159768,2357.4,2356.3,14.09422814]
[1770054293180,0.79159768,2357.4,2356.3,1.66813819]
[1770054293484,0.79159768,2357.4,2356.3,0.001]
[1770054293983,0.79159768,2357.4,2356.3,12.42708995]
[1770054294776,1.06053535,2357.3,2356.5,0.001]
[1770054294981,1.06163535,2357.3,2356.5,0.001]
[1770054296890,0.0011,2357.3,2356.6,0.91323785]
[1770054297186,0.0011,2357.3,2356.7,2.24723525]
[1770054297393,0.0011,2357.3,2356.7,1.33403278]
[1770054299094,0.0011,2357.3,2356.8,0.91379894]
[1770054299390,0.0011,2357.3,2356.7,1.33403278]
[1770054299588,0.0011,2357.3,2356.8,0.91417559]
[1770054299790,0.0011,2357.3,2356.7,1.33403278]
[1770054299990,0.0011,2357.3,2356.8,0.91417554]
[1770054300191,0.0011,2357.3,2356.9,0.91459196]
[1770054300495,0.0011,2357.3,2356.5,0.001]
[1770054302491,0.0011,2357.3,2356.5,13.56490712]
[1770054302666,0.0011,2357.3,2356.5,12.42708995]
[1770054303096,0.0011,2357.3,2356.6,1.06085037]
[1770054303469,0.0011,2357.3,2356.6,14.62475749]
[1770054303671,0.0011,2357.3,2356.7,14.31301141]
[1770054303915,12.5152873,2357.3,2356.3,0.001]
[1770054304103,0.0011,2357.3,2356.3,1.06197703]
[1770054304399,0.0011,2357.3,2356.3,0.001]
[1770054304781,0.0011,2357.3,2356.3,1.061959]
[1770054304966,0.0011,2357.3,2356.3,0.001]
[1770054305167,1.06163535,2357.3,2356.3,0.001]
[1770054305369,0.69259773,2357.2,2356.3,0.001]
[1770054306499,14.03398781,2357.1,2355.7,2.02781717]
[1770054307173,14.03398781,2357.1,2355.7,0.89]
[1770054307375,1.06067034,2357.0,2355.7,0.89]
[1770054307587,1.06067034,2357.0,2355.7,1.95125322]
[1770054307799,1.93373395,2356.9,2355.8,12.42608995]
[1770054308301,1.93373395,2356.9,2356.5,0.001]
[1770054308689,0.69259773,2357.2,2356.5,0.001]
[1770054308890,0.0011,2357.3,2356.5,12.42708995]
[1770054309301,0.0011,2357.3,2356.7,12.42608995]
[1770054310095,0.0011,2357.6,2356.9,12.42608995]
[1770054310308,0.0011,2357.6,2356.8,0.01276622]
[1770054310309,0.0011,2357.8,2357.1,12.42608995]
[1770054310906,0.32380022,2358.3,2357.2,12.42608995]
[1770054311089,1e-08,2358.3,2357.5,13.56390712]
[1770054311297,1e-08,2358.3,2357.6,0.89]
[1770054311610,1e-08,2358.3,2357.1,0.89]
[1770054311827,1e-08,2358.3,2357.1,1.95062173]
[1770054312128,1e-08,2358.3,2357.3,1.06053449]
[1770054312322,1e-08,2358.3,2357.4,1.06048628]
[1770054312482,1e-08,2358.3,2357.3,1.06050227]
[1770054312678,1e-08,2358.3,2357.2,13.48664321]